fUSD/lending_fUSD_20250602
["ID","MTS","AMOUNT","RATE_DAILY","PERIOD"]
[363839232,1748894812292,1044.15,0.00041095,120]
[363839233,1748894812486,460.0,0.00041095,120]
[363839234,1748894813691,593.41,0.00041095,120]
[363839235,1748894813724,460.0,0.00041095,120]
[363839236,1748894813939,460.0,0.00041095,120]
[363839237,1748894816499,460.0,0.00041095,120]
[363839238,1748894816615,1503.71,0.00041095,120]
[363839239,1748894816759,460.0,0.00041095,120]
[363839240,1748894816828,460.0,0.00041095,120]
[363839241,1748894816953,460.0,0.00041095,120]
[363839242,1748894817637,460.0,0.00041095,120]
[363839243,1748894818351,500.9,0.00041095,120]
[363839244,1748894818642,753.22,0.00041095,120]
[363839245,1748894819366,460.0,0.00041095,120]
[363839246,1748894819682,460.0,0.00041095,120]
[363839247,1748894820016,460.0,0.00041095,120]
[363839248,1748894820783,1379.76,0.00041095,120]
[363839249,1748894822001,460.0,0.00041095,120]
[363839250,1748894822640,460.0,0.00041095,120]
[363839251,1748894823209,460.0,0.00041095,120]
[363839252,1748894824473,460.0,0.00041095,120]
[363839253,1748894824515,1283.5,0.00041095,120]
[363839254,1748894824979,460.0,0.00041095,120]
[363839255,1748894825562,974.15,0.00041095,120]
[363839256,1748894826598,460.0,0.00041095,120]
[363839257,1748894827047,460.0,0.00041095,120]
[363839258,1748894827628,615.6,0.00041095,120]
[363839259,1748894827945,460.0,0.00041095,120]
[363839260,1748894828818,460.0,0.00041095,120]
[363839261,1748894829124,460.0,0.00041095,120]
[363839262,1748894829658,380.0,0.00041095,120]
[363839263,1748894829697,460.0,0.00041095,120]
[363839264,1748894829978,385.84962906,0.00041095,120]
[363839265,1748894832220,460.0,0.00041095,120]
[363839266,1748894832348,460.0,0.00041095,120]
[363839267,1748894833524,460.0,0.00041095,120]
[363839268,1748894834479,1350.44,0.00041095,120]
[363839269,1748894834887,460.0,0.00041095,120]
[363839270,1748894835195,865.9,0.00041095,120]
[363839271,1748894835724,460.0,0.00041095,120]
[363839272,1748894836020,3505.81,0.00041095,120]
[363839273,1748894836170,2000.0,0.00038356,120]
[363839274,1748894836627,420.0,0.00041095,120]
[363839275,1748894836657,2000.0,0.00038356,120]
[363839276,1748894836947,743.61,0.00041095,120]
[363839277,1748894837056,460.0,0.00041095,120]
[363839278,1748894837098,2000.0,0.00038356,120]
[363839279,1748894837361,460.0,0.00041095,120]
[363839280,1748894837570,2000.0,0.00038356,120]
[363839281,1748894837726,460.0,0.00041095,120]
[363839282,1748894838050,2000.0,0.00038356,120]
[363839283,1748894838095,460.0,0.00041095,120]
[363839284,1748894838517,2000.0,0.00038356,120]
[363839285,1748894838941,2000.0,0.00038356,120]
[363839286,1748894839429,2000.0,0.00038356,120]
[363839287,1748894839977,2000.0,0.00038356,120]
[363839288,1748894840018,460.0,0.00041095,120]
[363839289,1748894840404,2000.0,0.00038356,120]
[363839290,1748894840852,2000.0,0.00038356,120]
[363839291,1748894841046,460.0,0.00041095,120]
[363839292,1748894841387,2000.0,0.00038356,120]
[363839293,1748894842136,460.0,0.00041095,120]
[363839294,1748894842205,2000.0,0.00038356,120]
[363839295,1748894842257,460.0,0.00041095,120]
[363839296,1748894842656,2000.0,0.00038356,120]
[363839297,1748894843146,2000.0,0.00038356,120]
[363839298,1748894843193,3826.47,0.00041095,120]
[363839299,1748894843588,1719.39977,0.00038356,120]
[363839300,1748894843989,460.0,0.00041095,120]
[363839301,1748894845223,460.0,0.00041095,120]
[363839302,1748894845406,460.0,0.00041095,120]
[363839303,1748894845475,798.15,0.00041095,120]
[363839304,1748894845627,460.0,0.00041095,120]
[363839305,1748894846135,460.0,0.00041095,120]
[363839306,1748894846815,460.0,0.00041095,120]
[363839307,1748894846866,5700.46,0.00041095,120]
[363839308,1748894847092,460.0,0.00041095,120]
[363839309,1748894847257,460.0,0.00041095,120]
[363839310,1748894847995,460.0,0.00041095,120]
[363839311,1748894848364,500.0,0.00041095,120]
[363839312,1748894848396,460.0,0.00041095,120]
[363839313,1748894848632,189.91915364,0.00041095,120]
[363839314,1748894849663,460.0,0.00041095,120]
[363839315,1748894850740,460.0,0.00041095,120]
[363839316,1748894850888,304.32624933,0.00041095,120]
[363839317,1748894850919,460.0,0.00041095,120]
[363839318,1748894851650,804.84,0.00041095,120]
[363839319,1748894852369,460.0,0.00041095,120]
[363839320,1748894852663,460.0,0.00041095,120]
[363839321,1748894852759,460.0,0.00041095,120]
[363839322,1748894853536,460.0,0.00041095,120]
[363839323,1748894853850,460.0,0.00041095,120]
[363839324,1748894855502,1318.16,0.00041095,120]
[363839325,1748894856267,460.0,0.00041095,120]
[363839326,1748894856458,460.0,0.00041095,120]
[363839327,1748894856862,460.0,0.00041095,120]
[363839328,1748894858438,246.44363388,0.00041095,120]
[363839329,1748894858953,460.0,0.00041095,120]
[363839330,1748894859747,460.0,0.00041095,120]
[363839331,1748894860288,4680.83,0.00041095,120]
[363839332,1748894860872,460.0,0.00041095,120]
[363839333,1748894862017,460.0,0.00041095,120]
[363839334,1748894862137,2788.24,0.00041095,120]
[363839335,1748894863648,500.53,0.00041095,120]
[363839336,1748894863927,1335.0,0.00041095,120]
[363839337,1748894864055,460.0,0.00041095,120]
[363839338,1748894864116,460.0,0.00041095,120]
[363839339,1748894864968,460.0,0.00041095,120]
[363839340,1748894865931,460.0,0.00041095,120]
[363839341,1748894866314,460.0,0.00041095,120]
[363839342,1748894866633,1420.25,0.00041095,120]
[363839343,1748894866929,460.0,0.00041095,120]
[363839344,1748894878718,420.0,0.00041095,120]
[363839345,1748894880143,460.0,0.00041095,120]
[363839346,1748894880562,1099.95,0.00041095,120]
[363839347,1748894880866,460.0,0.00041095,120]
[363839348,1748894881898,460.0,0.00041095,120]
[363839349,1748894882162,708.79,0.00041095,120]
[363839350,1748894882359,1386.54,0.00041095,120]
[363839351,1748894882815,529.75,0.00041095,120]
[363839352,1748894883383,460.0,0.00041095,120]
[363839353,1748894883499,460.0,0.00041095,120]
[363839354,1748894884824,460.0,0.00041095,120]
[363839355,1748894887576,460.0,0.00041095,120]
[363839356,1748894887828,460.0,0.00041095,120]
[363839357,1748894888086,460.0,0.00041095,120]
[363839358,1748894888888,460.0,0.00041095,120]
[363839359,1748894889264,8875.42,0.00041095,120]
[363839360,1748894889457,460.0,0.00041095,120]
[363839361,1748894890188,1000.0,0.00041095,120]
[363839362,1748894890909,1566.65,0.00041095,120]
[363839363,1748894890988,460.0,0.00041095,120]
[363839364,1748894891023,384.57308854,0.00041095,120]
[363839365,1748894891164,460.0,0.00041095,120]
[363839366,1748894892559,502.82,0.00041095,120]
[363839367,1748894892998,460.0,0.00041095,120]
[363839368,1748894894561,1284.65,0.00041095,120]
[363839369,1748894894698,599.72,0.00041095,120]
[363839370,1748894894806,460.0,0.00041095,120]
[363839371,1748894895254,460.0,0.00041095,120]
[363839372,1748894896485,460.0,0.00041095,120]
[363839373,1748894897909,2973.51,0.00041095,120]
[363839374,1748894898059,460.0,0.00041095,120]
[363839375,1748894898275,460.0,0.00041095,120]
[363839376,1748894898473,399.6355668,0.00041095,120]
[363839377,1748894900082,460.0,0.00041095,120]
[363839378,1748894900249,460.0,0.00041095,120]
[363839379,1748894901326,460.0,0.00041095,120]
[363839380,1748894901727,460.0,0.00041095,120]
[363839381,1748894902377,460.0,0.00041095,120]
[363839382,1748894902697,460.0,0.00041095,120]
[363839383,1748894903537,460.0,0.00041095,120]
[363839384,1748894903990,460.0,0.00041095,120]
[363839385,1748894904461,460.0,0.00041095,120]
[363839386,1748894904597,460.0,0.00041095,120]
[363839387,1748894904630,460.0,0.00041095,120]
[363839388,1748894905033,460.0,0.00041095,120]
[363839389,1748894906064,460.0,0.00041095,120]
[363839390,1748894906520,460.0,0.00041095,120]
[363839391,1748894906734,380.62487319,0.00041095,120]
[363839392,1748894907092,938.66,0.00041095,120]
[363839393,1748894907125,460.0,0.00041095,120]
[363839394,1748894907736,599.65,0.00041095,120]
[363839395,1748894907824,2747.34,0.00041095,120]
[363839396,1748894908395,420.0,0.00041095,120]
[363839397,1748894909195,460.0,0.00041095,120]
[363839398,1748894910564,460.0,0.00041095,120]
[363839399,1748894910648,150.0,0.00039556,120]
[363839400,1748894910686,460.0,0.00041095,120]
[363839401,1748894910716,460.0,0.00041095,120]
[363839402,1748894911671,1012.31,0.00041095,120]
[363839403,1748894912038,460.0,0.00041095,120]
[363839404,1748894912467,460.0,0.00041095,120]
[363839405,1748894913799,485.24,0.00041095,120]
[363839406,1748894914209,380.0,0.00041095,120]
[363839407,1748894914364,460.0,0.00041095,120]
[363839408,1748894914997,460.0,0.00041095,120]
[363839410,1748894916296,566.99,0.00041095,120]
[363839411,1748894916520,460.0,0.00041095,120]
[363839412,1748894916616,1609.48,0.00041095,120]
[363839413,1748894917428,460.0,0.00041095,120]
[363839414,1748894918856,1052.2,0.00041095,120]
[363839415,1748894919202,460.0,0.00041095,120]
[363839416,1748894920578,460.0,0.00041095,120]
[363839417,1748894921860,465.84,0.00041095,120]
[363839418,1748894922103,675.24,0.00041095,120]
[363839419,1748894923000,460.0,0.00041095,120]
[363839420,1748894923116,380.0,0.00041095,120]
[363839421,1748894923149,14092.51,0.00041095,120]
[363839422,1748894924980,380.0,0.00041095,120]
[363839423,1748894925013,460.0,0.00041095,120]
[363839424,1748894925887,460.0,0.00041095,120]
[363839425,1748894926214,460.0,0.00041095,120]
[363839426,1748894927013,380.0,0.00041095,120]
[363839427,1748894927424,2827.75,0.00041095,120]
[363839428,1748894928498,460.0,0.00041095,120]
[363839429,1748894929487,460.0,0.00041095,120]
[363839430,1748894929870,460.0,0.00041095,120]
[363839431,1748894930539,460.0,0.00041095,120]
[363839432,1748894931786,460.0,0.00041095,120]
[363839433,1748894932081,460.0,0.00041095,120]
[363839434,1748894932275,460.0,0.00041095,120]
[363839435,1748894932495,460.0,0.00041095,120]
[363839436,1748894934158,460.0,0.00041095,120]
[363839437,1748894935425,554.32,0.00041095,120]
[363839438,1748894935706,674.73,0.00041095,120]
[363839439,1748894936100,975.42,0.00041095,120]
[363839440,1748894936206,460.0,0.00041095,120]
[363839441,1748894937475,562.71,0.00041095,120]
[363839442,1748894937559,460.0,0.00041095,120]
[363839443,1748894938380,460.0,0.00041095,120]
[363839444,1748894938569,460.0,0.00041095,120]
[363839445,1748894938700,771.58,0.00041095,120]
[363839447,1748894940046,460.0,0.00041095,120]
[363839448,1748894942803,460.0,0.00041095,120]
[363839449,1748894943392,460.0,0.00041095,120]
[363839450,1748894943831,460.0,0.00041095,120]
[363839451,1748894944260,661.37,0.00041095,120]
[363839452,1748894944434,460.0,0.00041095,120]
[363839453,1748894944532,681.96,0.00041095,120]
[363839454,1748894945456,460.0,0.00041095,120]
[363839455,1748894945886,593.23,0.00041095,120]
[363839456,1748894945984,469.01,0.00041095,120]
[363839457,1748894946222,460.0,0.00041095,120]
[363839458,1748894947594,824.95,0.00041095,120]
[363839459,1748894947973,1364.3,0.00041095,120]
[363839460,1748894948066,389.63732591,0.00041095,120]
[363839461,1748894948890,460.0,0.00041095,120]
[363839462,1748894948929,460.0,0.00041095,120]
[363839463,1748894948992,386.52031923,0.00041095,120]
[363839464,1748894950701,197.85221813,0.00041095,120]
[363839465,1748894951771,460.0,0.00041095,120]
[363839466,1748894952029,460.0,0.00041095,120]
[363839467,1748894952427,460.0,0.00041095,120]
[363839468,1748894952709,460.0,0.00041095,120]
[363839469,1748894954068,460.0,0.00041095,120]
[363839470,1748894954971,460.0,0.00041095,120]
[363839471,1748894955121,460.0,0.00041095,120]
[363839472,1748894955636,460.0,0.00041095,120]
[363839473,1748894955910,460.0,0.00041095,120]
[363839474,1748894956271,460.0,0.00041095,120]
[363839475,1748894956311,494.07,0.00041095,120]
[363839476,1748894956355,460.0,0.00041095,120]
[363839477,1748894956608,550.76,0.00041095,120]
[363839478,1748894957798,460.0,0.00041095,120]
[363839479,1748894958003,460.0,0.00041095,120]
[363839480,1748894959117,460.0,0.00041095,120]
[363839481,1748894959939,460.0,0.00041095,120]
[363839482,1748894959995,491.39,0.00041095,120]
[363839495,1748894960349,460.0,0.00041095,120]
[363839500,1748894960576,460.0,0.00041095,120]
[363839501,1748894963555,460.0,0.00041095,120]
[363839502,1748894963787,460.0,0.00041095,120]
[363839504,1748894965118,460.0,0.00041095,120]
[363839505,1748894965239,460.0,0.00041095,120]
[363839506,1748894965344,460.0,0.00041095,120]
[363839507,1748894966086,460.0,0.00041095,120]
[363839508,1748894967148,460.0,0.00041095,120]
[363839509,1748894967865,460.0,0.00041095,120]
[363839510,1748894968331,342.49121407,0.00041095,120]
[363839511,1748894968436,423.93025735,0.00041095,120]
[363839512,1748894970370,460.0,0.00041095,120]
[363839513,1748894970724,460.0,0.00041095,120]
[363839514,1748894972393,2440.07,0.00041095,120]
[363839515,1748894972435,460.0,0.00041095,120]
[363839516,1748894972477,460.0,0.00041095,120]
[363839517,1748894972802,460.0,0.00041095,120]
[363839518,1748894972918,380.0,0.00041095,120]
[363839519,1748894973319,1029.94,0.00041095,120]
[363839520,1748894973705,460.0,0.00041095,120]
[363839521,1748894973740,460.0,0.00041095,120]
[363839522,1748894974141,460.0,0.00041095,120]
[363839523,1748894976369,460.0,0.00041095,120]
[363839524,1748894977031,460.0,0.00041095,120]
[363839525,1748894977334,460.0,0.00041095,120]
[363839526,1748894977436,380.0,0.00041095,120]
[363839527,1748894977507,380.0,0.00041095,120]
[363839528,1748894978590,460.0,0.00041095,120]
[363839529,1748894978840,460.0,0.00041095,120]
[363839530,1748894979376,460.0,0.00041095,120]
[363839531,1748894979541,380.0,0.00041095,120]
[363839532,1748894980207,848.31,0.00041095,120]
[363839533,1748894981669,460.0,0.00041095,120]
[363839534,1748894981998,380.0,0.00041095,120]
[363839535,1748894982082,460.0,0.00041095,120]
[363839536,1748894982940,460.0,0.00041095,120]
[363839537,1748894982995,460.0,0.00041095,120]
[363839538,1748894983593,460.0,0.00041095,120]
[363839539,1748894984002,1635.35,0.00041095,120]
[363839540,1748894984296,460.0,0.00041095,120]
[363839541,1748894985525,420.0,0.00041095,120]
[363839542,1748894985824,677.79,0.00041095,120]
[363839543,1748894985908,460.0,0.00041095,120]
[363839544,1748894986125,460.0,0.00041095,120]
[363839545,1748894987459,539.66,0.00041095,120]
[363839546,1748894987585,460.0,0.00041095,120]
[363839547,1748894987828,380.0,0.00041095,120]
[363839548,1748894988151,460.0,0.00041095,120]
[363839549,1748894989236,755.65,0.00041095,120]
[363839550,1748894990142,350.53852534,0.00041095,120]
[363839551,1748894990344,460.0,0.00041095,120]
[363839553,1748894990385,593.72,0.00041095,120]
[363839554,1748894991853,4330.77,0.00041095,120]
[363839555,1748894992770,393.9342704,0.00041095,120]
[363839556,1748894993529,460.0,0.00041095,120]
[363839557,1748894993929,344.21750343,0.00041095,120]
[363839558,1748894994514,460.0,0.00041095,120]
[363839559,1748894995252,427.52599933,0.00041095,120]
[363839560,1748894995329,2966.02,0.00041095,120]
[363839561,1748894995410,6054.4079393,0.00041095,120]
[363839562,1748894995840,460.0,0.00041095,120]
[363839563,1748894998582,460.0,0.00041095,120]
[363839564,1748894998621,460.0,0.00041095,120]
[363839565,1748894998721,460.0,0.00041095,120]
[363839566,1748894998777,656.18,0.00041095,120]
[363839567,1748894999320,3533.9,0.00041095,120]
[363839568,1748894999369,460.0,0.00041095,120]
[363839569,1748895000510,460.0,0.00041095,120]
[363839570,1748895001123,460.0,0.00041095,120]
[363839571,1748895001421,581.34,0.00041095,120]
[363839572,1748895001566,561.17,0.00041095,120]
[363839573,1748895001736,1454.87,0.00041095,120]
[363839574,1748895002099,460.0,0.00041095,120]
[363839575,1748895004009,460.0,0.00041095,120]
[363839576,1748895004464,460.0,0.00041095,120]
[363839577,1748895005120,460.0,0.00041095,120]
[363839578,1748895006290,460.0,0.00041095,120]
[363839579,1748895006554,460.0,0.00041095,120]
[363839580,1748895008314,1172.18,0.00041095,120]
[363839581,1748895009955,460.0,0.00041095,120]
[363839582,1748895010569,775.96,0.00041095,120]
[363839583,1748895011138,460.0,0.00041095,120]
[363839584,1748895011350,460.0,0.00041095,120]
[363839585,1748895011513,460.0,0.00041095,120]
[363839586,1748895012809,489.51,0.00041095,120]
[363839587,1748895013023,460.0,0.00041095,120]
[363839588,1748895014647,460.0,0.00041095,120]
[363839589,1748895015176,4750.66,0.00041095,120]
[363839590,1748895015643,460.0,0.00041095,120]
[363839591,1748895015682,460.0,0.00041095,120]
[363839592,1748895016185,460.0,0.00041095,120]
[363839593,1748895016809,2191.39,0.00041095,120]
[363839594,1748895017338,460.0,0.00041095,120]
[363839595,1748895018902,4393.72,0.00041095,120]
[363839596,1748895018950,460.0,0.00041095,120]
[363839597,1748895019234,460.0,0.00041095,120]
[363839598,1748895019985,380.0,0.00041095,120]
[363839599,1748895020570,582.07,0.00041095,120]
[363839600,1748895022085,460.0,0.00041095,120]
[363839601,1748895023345,460.0,0.00041095,120]
[363839602,1748895023465,460.0,0.00041095,120]
[363839603,1748895023750,460.0,0.00041095,120]
[363839604,1748895024078,2262.71,0.00041095,120]
[363839605,1748895024323,460.0,0.00041095,120]
[363839606,1748895025260,460.0,0.00041095,120]
[363839607,1748895025342,460.0,0.00041095,120]
[363839608,1748895025450,300.0,0.00041095,120]
[363839609,1748895025539,460.0,0.00041095,120]
[363839610,1748895026160,350.0,0.00041055,120]
[363839611,1748895027045,593.08202738,0.00041095,120]
[363839612,1748895027437,460.0,0.00041095,120]
[363839613,1748895027601,460.0,0.00041095,120]
[363839614,1748895028726,680.82,0.00041095,120]
[363839615,1748895029641,460.0,0.00041095,120]
[363839616,1748895030496,515.25,0.00041095,120]
[363839617,1748895031660,-164.84,0.00020449,2]
[363839618,1748895031670,-282.02411786,0.00021077,2]
[363839619,1748895031683,-304.36,0.00021077,2]
[363839620,1748895031693,-301.01,0.00021077,2]
[363839621,1748895031702,-301.92,0.00021078,2]
[363839622,1748895031713,-301.02,0.00021078,2]
[363839623,1748895031723,-304.34,0.00021083,2]
[363839624,1748895031733,-303.49,0.00021106,2]
[363839625,1748895031743,-759.03,0.00021118,2]
[363839626,1748895031753,-300.85,0.0002123,2]
[363839627,1748895031765,-303.7,0.00021651,2]
[363839628,1748895031775,-207.4,0.00021808,2]
[363839629,1748895031786,-716.0,0.0002182,2]
[363839630,1748895031796,-1200.0,0.0002182,2]
[363839631,1748895031807,-303.59,0.00021821,2]
[363839632,1748895031817,-305.65,0.00021821,2]
[363839633,1748895031827,-302.41,0.00021821,2]
[363839634,1748895031837,-301.26,0.00021821,2]
[363839635,1748895031847,-302.42,0.00021821,2]
[363839636,1748895031858,-305.13,0.00021821,2]
[363839637,1748895031867,-302.46,0.00021821,2]
[363839638,1748895031877,-300.83,0.00021821,2]
[363839639,1748895031886,-300.18,0.00021821,2]
[363839640,1748895031895,-301.32,0.00021821,2]
[363839641,1748895031905,-302.38,0.00021821,2]
[363839642,1748895031914,-302.58,0.00021821,2]
[363839643,1748895031925,-305.53,0.00021821,2]
[363839644,1748895031935,-301.97,0.00021821,2]
[363839645,1748895031944,-303.62,0.00021821,2]
[363839646,1748895031954,-301.07,0.00021821,2]
[363839647,1748895031969,-300.45,0.00021821,2]
[363839648,1748895031983,-302.84,0.00021821,2]
[363839649,1748895031994,-300.13,0.00021821,2]
[363839650,1748895032004,-301.52,0.00021821,2]
[363839651,1748895032015,-303.56,0.00021821,2]
[363839652,1748895032025,-301.71,0.00021821,2]
[363839653,1748895032035,-301.38,0.00021821,2]
[363839654,1748895032044,-303.38,0.00021843,2]
[363839655,1748895032054,-300.25,0.00021876,2]
[363839656,1748895032064,-303.09,0.00021876,2]
[363839657,1748895032074,-304.27,0.00021876,2]
[363839658,1748895032088,-303.55,0.00021876,2]
[363839659,1748895032098,-300.34,0.00021876,2]
[363839660,1748895032107,-302.16,0.00021876,2]
[363839661,1748895032118,-301.26,0.00021876,2]
[363839662,1748895032128,-301.48,0.00021876,2]
[363839663,1748895032139,-300.71,0.00021876,2]
[363839664,1748895032149,-302.26,0.00021876,2]
[363839665,1748895032159,-305.53,0.00021876,2]
[363839666,1748895032169,-302.97,0.00021876,2]
[363839667,1748895032180,-305.69,0.00021876,2]
[363839668,1748895032192,-300.88,0.00021876,2]
[363839669,1748895032202,-302.31,0.00021876,2]
[363839670,1748895032213,-302.52,0.00021876,2]
[363839671,1748895032223,-305.53,0.00021876,2]
[363839672,1748895032233,-305.79,0.00021876,2]
[363839673,1748895032244,-305.33,0.00022077,2]
[363839674,1748895032254,-305.24,0.00022077,2]
[363839675,1748895032265,-301.27,0.00022077,2]
[363839676,1748895032276,-300.32,0.00022077,2]
[363839677,1748895032287,-305.16,0.00022077,2]
[363839678,1748895032296,-304.69,0.00022077,2]
[363839679,1748895032307,-302.2,0.00022077,2]
[363839680,1748895032317,-302.99,0.00022077,2]
[363839681,1748895032326,-300.23,0.00022077,2]
[363839682,1748895032336,-300.97,0.00022077,2]
[363839683,1748895032346,-305.33,0.00022077,2]
[363839684,1748895032356,-304.2,0.00022077,2]
[363839685,1748895032367,-304.62,0.00022077,2]
[363839686,1748895032378,-301.97,0.00022077,2]
[363839687,1748895032390,-304.63,0.00022077,2]
[363839688,1748895032402,-300.96,0.00022077,2]
[363839689,1748895032412,-304.74,0.00022077,2]
[363839690,1748895032423,-300.97,0.00022077,2]
[363839691,1748895032433,-302.25,0.00022077,2]
[363839692,1748895032443,-302.84,0.00022077,2]
[363839693,1748895032453,-301.33,0.00022077,2]
[363839694,1748895032462,-151.0,0.00022212,2]
[363839695,1748895032472,-500.0,0.00022212,2]
[363839696,1748895032483,-500.0,0.00022212,2]
[363839697,1748895032493,-601.82,0.00022212,2]
[363839698,1748895032503,-379.978,0.00022225,2]
[363839699,1748895032514,-801.0,0.00022225,2]
[363839700,1748895032534,-1253.0,0.00022225,2]
[363839701,1748895032544,-155.0,0.00022333,2]
[363839702,1748895032554,-195.797,0.00022333,2]
[363839703,1748895032564,-4075.0,0.00022333,2]
[363839704,1748895032574,-1157.0,0.00022333,2]
[363839705,1748895032584,-4255.83657733,0.000229,8]
[363839706,1748895032598,-81.36558463,0.000229,8]
[363839707,1748895032608,-2460.06466093,0.00022989,2]
[363839708,1748895032652,460.0,0.00041095,120]
[363839709,1748895032683,-1864.56664616,0.00022989,2]
[363839710,1748895032699,-11760.26009861,0.00022989,2]
[363839711,1748895032745,-269.652,0.00022989,2]
[363839712,1748895032758,-607.49964785,0.00022989,2]
[363839713,1748895032771,-349.329,0.00022989,2]
[363839714,1748895032784,-1204.16977347,0.00022989,2]
[363839715,1748895032869,-5363.81628104,0.00022989,2]
[363839716,1748895032882,-268.61,0.00022989,2]
[363839717,1748895032894,-718.30226286,0.00022989,2]
[363839718,1748895032914,-584.45659156,0.00022989,2]
[363839719,1748895032931,-1069.85932377,0.00022989,2]
[363839720,1748895032943,-547.87474114,0.00022989,2]
[363839721,1748895032991,460.0,0.00041095,120]
[363839737,1748895033986,460.0,0.00041095,120]
[363839800,1748895034358,471.13,0.00041095,120]
[363839807,1748895034429,460.0,0.00041095,120]
[363839845,1748895034806,460.0,0.00041095,120]
[363839847,1748895034855,380.0,0.00041095,120]
[363839848,1748895034956,1355.4,0.00041095,120]
[363839858,1748895035082,460.0,0.00041095,120]
[363839863,1748895035119,460.0,0.00041095,120]
[363840019,1748895036730,460.0,0.00041095,120]
[363840034,1748895036885,460.0,0.00041095,120]
[363840104,1748895037654,-177.032872,0.00021542,2]
[363840106,1748895037664,-303.98,0.00021876,2]
[363840108,1748895037680,-7722.89897261,0.00022989,2]
[363840110,1748895037691,-949.98815539,0.00023,2]
[363840115,1748895037737,460.0,0.00041095,120]
[363840123,1748895037830,460.0,0.00041095,120]
[363840126,1748895037856,-455.94184461,0.00023,2]
[363840127,1748895037866,-566.0,0.00023,7]
[363840129,1748895037876,-181.5,0.00023031,2]
[363840131,1748895037886,-1000.0,0.00023062,2]
[363840133,1748895037896,-162.50042539,0.00023121,2]
[363840136,1748895037916,-37.49957461,0.00023121,2]
[363840138,1748895037930,-390.75,0.00023155,2]
[363840140,1748895037940,-215.0738,0.00023177,2]
[363840142,1748895037951,-556.91,0.00023247,2]
[363840143,1748895037961,-566.0,0.00023288,7]
[363840145,1748895037971,-759.03,0.00023382,2]
[363840147,1748895037981,-600.0,0.00023524,2]
[363840149,1748895037991,-156.587,0.00023581,2]
[363840151,1748895038002,-460.6,0.0002383,2]